bitfinex/quotes_SOLUSD_20220113
["timestamp","ask_amount","ask_price","bid_price","bid_amount"]
[1642037303918,103.2015,150.17,150.08,0.26]
[1642037306424,128.33132234,150.17,150.08,0.26]
[1642037307530,137.83132234,150.17,150.04,75.05857606]
[1642037307726,2.06477668,150.16,150.04,75.05857606]
[1642037307926,2.664,150.15,150.05,6.0]
[1642037308127,2.914,150.15,150.05,6.0]
[1642037308530,2.914,150.15,150.05,29.54075606]
[1642037308728,2.914,150.15,150.05,29.79075606]
[1642037309127,4.28823727,150.16,150.05,29.79075606]
[1642037310054,4.28823727,150.16,150.06,0.26]
[1642037310454,4.53823727,150.16,150.06,0.26]
[1642037313556,1.87423727,150.16,150.06,0.26]
[1642037313754,1.62423727,150.16,150.06,9.76]
[1642037313955,1.62423727,150.16,150.06,76.1]
[1642037314155,1.62423727,150.16,150.07,6.0]
[1642037314455,1.62423727,150.16,150.08,9.76]
[1642037314655,1.62423727,150.16,150.08,10.01]
[1642037314855,101.91173727,150.17,150.09,6.0]
[1642037315057,101.91173727,150.17,150.1,24.37156731]
[1642037315256,101.91173727,150.17,150.1,24.88156731]
[1642037315956,100.2875,150.17,150.1,24.88156731]
[1642037317757,24.2881,150.17,150.1,24.88156731]
[1642037317957,23.7909,150.18,150.1,24.88156731]
[1642037318359,1.62423727,150.2,150.1,24.88156731]
[1642037318759,1.62423727,150.21,150.1,100.72156731]
[1642037319659,1.62423727,150.21,150.12,66.34]
[1642037319860,1.62423727,150.21,150.13,25.71039012]
[1642037320064,1.62423727,150.21,150.14,75.84]
[1642037320262,1.62423727,150.23,150.14,82.09]
[1642037320460,1.62423727,150.23,150.15,0.26]
[1642037321161,1.62423727,150.25,150.16,9.5]
[1642037321361,1.62423727,150.25,150.16,75.84]
[1642037321559,1.62423727,150.25,150.17,25.93084268]
[1642037321760,1.62423727,150.25,150.17,26.18084268]
[1642037322163,1.62423727,150.26,150.17,26.18084268]
[1642037322762,100.8143,150.27,150.17,26.18084268]
[1642037323365,2.662,150.26,150.17,0.26]
[1642037323564,8.662,150.26,150.17,0.26]
[1642037323764,8.662,150.26,150.15,0.26]
[1642037323963,22.6026,150.25,150.13,10.26]
[1642037324164,2.662,150.24,150.13,0.26]
[1642037324364,2.662,150.24,150.14,9.5]
[1642037324765,2.662,150.24,150.15,0.26]
[1642037325967,22.6026,150.25,150.15,0.26]
[1642037326368,4.28623727,150.26,150.15,0.26]
[1642037326570,2.662,150.26,150.15,0.26]
[1642037326969,26.8226,150.26,150.14,9.75]
[1642037327169,9.5,150.25,150.13,25.75728068]
[1642037327370,2.662,150.24,150.14,10.0]
[1642037327569,6.0,150.23,150.13,25.75728068]
[1642037327773,2.662,150.22,150.13,25.75728068]
[1642037328298,2.912,150.22,150.14,0.26]
[1642037328470,0.25,150.22,150.14,0.26]
[1642037329170,2.912,150.23,150.14,0.26]
[1642037329772,2.912,150.23,150.13,26.00728068]
[1642037330375,0.26,150.22,150.13,25.75728068]
[1642037330572,2.662,150.21,150.13,25.75728068]
[1642037330773,2.912,150.21,150.13,25.75728068]
[1642037330974,28.95250418,150.21,150.13,25.75728068]
[1642037331174,38.45250418,150.21,150.09,150.8978]
[1642037331375,66.34,150.2,150.09,74.5477]
[1642037331573,2.664,150.19,150.09,0.25]
[1642037331772,2.914,150.19,150.09,0.25]
[1642037332172,2.914,150.19,150.09,31.26882901]
[1642037332375,2.914,150.19,150.09,31.01882901]
[1642037332772,2.914,150.19,150.1,0.26]
[1642037333673,27.77223476,150.18,150.07,9.5]
[1642037333873,2.664,150.17,150.04,11.38897606]
[1642037334073,6.0,150.16,150.05,6.0]
[1642037334274,2.664,150.15,150.04,11.38897606]
[1642037334475,2.664,150.15,150.04,9.5]
[1642037334773,2.664,150.15,150.05,27.27727791]
[1642037334974,84.5696,150.16,150.05,27.27727791]
[1642037335172,78.5696,150.16,150.05,27.52727791]
[1642037335374,78.5696,150.16,150.06,0.26]
[1642037338279,78.8196,150.16,150.06,0.26]
[1642037338477,78.5696,150.16,150.06,0.26]
[1642037339880,81.2336,150.16,150.06,0.26]
[1642037340382,81.2336,150.16,150.06,9.76]
[1642037340786,81.2336,150.16,150.06,10.01]
[1642037340985,78.5696,150.16,150.06,10.01]
[1642037341586,78.8196,150.16,150.06,0.51]
[1642037341784,78.8196,150.16,150.06,0.26]
[1642037341985,2.664,150.15,150.06,0.26]
[1642037343392,81.2336,150.16,150.06,0.26]
[1642037344286,2.664,150.16,150.06,0.26]
[1642037344488,1.62423727,150.2,150.07,77.42863643]
[1642037344688,1.62423727,150.2,150.07,77.67863643]
[1642037344889,1.62423727,150.2,150.08,0.26]
[1642037345088,1.62423727,150.2,150.09,9.5]
[1642037345290,2.664,150.19,150.1,25.88534853]
[1642037345488,2.664,150.19,150.1,26.14534853]
[1642037345694,2.664,150.19,150.1,0.25]
[1642037345695,22.01478276,150.18,150.1,0.25]
[1642037345893,2.664,150.17,150.1,0.25]
[1642037346290,6.0,150.16,150.1,0.25]
[1642037346490,72.59,150.16,150.07,1.88897606]
[1642037346691,2.664,150.15,150.08,30.1256381]
[1642037347090,2.664,150.15,150.08,30.3756381]
[1642037347890,2.664,150.15,150.09,0.26]
[1642037348494,2.664,150.17,150.09,0.26]
[1642037348693,22.9065,150.18,150.09,0.26]
[1642037352021,28.97494707,150.17,150.08,30.1256381]
[1642037352222,29.22494707,150.17,150.08,30.1256381]
[1642037352423,6.0,150.16,150.08,30.1256381]
[1642037352623,2.664,150.15,150.06,1.88897606]
[1642037352823,27.2338,150.15,150.04,1.88897606]
[1642037353023,27.4838,150.15,150.04,1.88897606]
[1642037353423,27.4838,150.15,150.05,0.26]
[1642037353626,27.4838,150.15,150.05,27.925283]
[1642037354024,27.2338,150.15,150.05,28.175283]
[1642037354226,24.5698,150.15,150.06,9.5]
[1642037354425,24.5698,150.15,150.07,0.26]
[1642037356433,24.5698,150.15,150.06,11.38897606]
[1642037356733,2.664,150.14,150.06,1.88897606]
[1642037356934,2.664,150.14,150.07,0.26]
[1642037357539,2.664,150.14,150.06,0.26]
[1642037358935,24.8198,150.15,150.06,0.26]
[1642037359136,50.04561427,150.15,150.06,0.26]
[1642037359337,116.38561427,150.15,150.05,27.665283]
[1642037359537,2.664,150.14,150.05,27.665283]
[1642037359737,3.174,150.14,150.05,27.665283]
[1642037361038,6.0,150.13,150.05,27.665283]
[1642037361244,2.665,150.12,150.03,1.88897606]
[1642037361537,2.665,150.12,150.04,0.26]
[1642037361736,2.915,150.12,150.04,0.26]
[1642037362338,0.25,150.12,150.04,27.42966112]
[1642037362537,0.25,150.12,150.04,27.16966112]
[1642037362736,2.915,150.14,150.05,0.26]
[1642037363137,2.665,150.14,150.05,0.26]
[1642037363338,2.665,150.14,150.05,9.76]
[1642037363738,2.665,150.14,150.05,10.01]
[1642037363940,49.32613727,150.15,150.05,10.01]
[1642037363941,47.7019,150.15,150.05,10.01]
[1642037364341,74.75623727,150.17,150.06,66.34]
[1642037364541,74.75623727,150.17,150.08,27.55042817]
[1642037364741,74.75623727,150.17,150.08,37.30042817]
[1642037364942,73.132,150.17,150.09,0.26]
[1642037368944,73.382,150.17,150.09,0.26]
[1642037369147,73.132,150.17,150.09,0.26]
[1642037370245,73.382,150.17,150.09,0.26]
[1642037370847,73.132,150.17,150.09,0.26]
[1642037372048,2.664,150.16,150.09,0.26]
[1642037374552,75.796,150.17,150.09,0.26]
[1642037374751,76.046,150.17,150.09,0.26]
[1642037376852,73.382,150.17,150.09,0.26]
[1642037377084,73.132,150.17,150.09,0.26]
[1642037379655,73.382,150.17,150.09,0.26]
[1642037379854,73.132,150.17,150.09,0.26]
[1642037381456,73.382,150.17,150.09,0.26]
[1642037381657,73.132,150.17,150.09,0.26]
[1642037382260,96.38033624,150.17,150.09,0.26]
[1642037382459,96.63033624,150.17,150.08,9.5]
[1642037382658,2.664,150.16,150.08,0.25]
[1642037383059,2.914,150.16,150.05,2.13897606]
[1642037383458,2.914,150.16,150.06,28.64784471]
[1642037383759,2.914,150.16,150.06,28.89784471]
[1642037383957,2.914,150.16,150.07,0.26]
[1642037384158,99.04433624,150.17,150.07,0.26]
[1642037384658,99.29433624,150.17,150.07,0.26]
[1642037385061,76.046,150.17,150.07,9.76]
[1642037385261,75.796,150.17,150.07,10.01]
[1642037385461,73.132,150.17,150.07,10.01]
[1642037386166,73.382,150.17,150.07,10.01]
[1642037386667,73.132,150.17,150.07,10.01]
[1642037386868,75.796,150.17,150.07,10.01]
[1642037387068,76.046,150.17,150.07,10.01]
[1642037387669,75.796,150.17,150.07,9.76]
[1642037387870,73.132,150.17,150.07,9.76]
[1642037389269,73.132,150.17,150.07,10.01]
[1642037389669,73.382,150.17,150.07,10.01]
[1642037390072,2.664,150.16,150.07,10.01]
[1642037391770,2.664,150.16,150.07,0.25]
[1642037391971,2.914,150.16,150.06,28.89784471]
[1642037392701,4.53823727,150.16,150.06,28.89784471]
[1642037392897,4.53823727,150.16,150.07,0.26]
[1642037393096,4.28823727,150.16,150.07,0.26]
[1642037395001,4.53823727,150.16,150.07,0.26]
[1642037396604,1.62423727,150.16,150.07,6.26]
[1642037396806,1.62423727,150.16,150.07,0.26]
[1642037397608,2.664,150.15,150.06,28.89784471]
[1642037397810,2.664,150.15,150.06,0.25]
[1642037398007,2.914,150.15,150.06,0.25]
[1642037398208,2.914,150.15,150.05,2.13897606]
[1642037398610,2.914,150.15,150.06,25.42910118]
[1642037398808,4.53823727,150.15,150.06,25.42910118]
[1642037399011,1.87423727,150.15,150.06,25.67910118]
[1642037399708,1.87423727,150.15,150.07,0.26]
[1642037400110,23.04469789,150.14,150.07,0.26]
[1642037400608,23.04469789,150.14,150.06,0.25]
[1642037400809,114.43409789,150.14,150.06,0.25]
[1642037401010,0.26,150.13,150.04,2.13897606]
[1642037401208,0.26,150.13,150.04,1.88897606]
[1642037401812,74.22423727,150.13,150.03,1.88897606]
[1642037402013,26.49727268,150.11,150.03,1.88897606]
[1642037402312,69.005,150.1,150.03,1.88897606]
[1642037402513,75.265,150.1,150.03,1.88897606]
[1642037402710,9.175,150.1,150.03,26.05264546]
[1642037402914,8.915,150.1,150.03,24.1636694]
[1642037403111,2.915,150.1,150.03,24.1636694]
[1642037403712,2.665,150.1,150.03,24.1636694]
[1642037403912,2.665,150.13,150.03,24.1636694]
[1642037404114,2.665,150.13,150.03,24.4136694]
[1642037404516,26.42363727,150.14,150.03,24.4136694]
[1642037404714,26.42363727,150.14,150.04,0.26]
[1642037404915,26.42363727,150.14,150.04,6.26]
[1642037405114,26.42363727,150.14,150.04,0.26]
[1642037405417,26.42363727,150.14,150.04,0.51]
[1642037405616,26.42363727,150.14,150.04,6.51]
[1642037405814,24.7994,150.14,150.04,6.51]
[1642037407013,24.7994,150.14,150.04,6.25]
[1642037407215,9.76,150.13,150.03,1.88897606]
[1642037407514,26.4871,150.12,150.03,1.88897606]
[1642037407714,66.34,150.11,150.03,1.88897606]
[1642037407924,2.665,150.1,150.03,1.88897606]
[1642037408122,9.5,150.13,150.03,1.88897606]
[1642037408324,1.62423727,150.14,150.04,35.54264781]
[1642037408525,1.62423727,150.14,150.05,6.26]
[1642037408822,1.87423727,150.14,150.05,6.51]
[1642037409525,0.26,150.13,150.05,0.25]
[1642037409724,69.264,150.13,150.04,29.54264781]
[1642037410225,69.514,150.13,150.04,29.54264781]
[1642037410624,2.914,150.13,150.04,29.54264781]
[1642037410847,23.6089,150.15,150.04,29.54264781]
[1642037411047,6.26,150.14,150.05,0.26]
[1642037411249,6.0,150.14,150.05,0.26]
[1642037411453,23.6089,150.15,150.05,0.26]
[1642037411849,25.02663727,150.16,150.05,9.76]
[1642037412151,1.62423727,150.16,150.05,16.01]
[1642037412549,74.75623727,150.17,150.05,82.35]
[1642037413350,1.62423727,150.17,150.05,82.42]
[1642037413751,1.62423727,150.17,150.05,16.08]
[1642037414158,79.36653727,150.2,150.06,1.88897606]
[1642037414454,79.36653727,150.2,150.07,9.76]
[1642037414653,79.36653727,150.2,150.07,16.01]
[1642037414854,79.36653727,150.2,150.08,26.59355704]
[1642037415054,79.36653727,150.2,150.09,15.5]
[1642037415256,77.9923,150.2,150.09,16.01]
[1642037416455,77.9923,150.2,150.09,82.35]
[1642037416655,77.9923,150.2,150.09,16.01]
[1642037418457,77.9923,150.2,150.1,66.34]
[1642037418657,2.664,150.19,150.1,76.09]
[1642037418858,2.662,150.21,150.11,6.26]
[1642037419060,2.662,150.21,150.12,9.5]
[1642037419260,1.62423727,150.22,150.13,26.32198391]
[1642037419460,1.62423727,150.22,150.13,32.58198391]
[1642037419664,1.62423727,150.22,150.13,32.83198391]
[1642037419862,26.01727832,150.21,150.13,32.83198391]
[1642037420064,2.662,150.2,150.09,1.88897606]
[1642037420265,8.922,150.2,150.09,1.88897606]
[1642037420462,1.80477668,150.19,150.09,1.88897606]
[1642037420665,2.664,150.18,150.09,1.88897606]
[1642037420864,2.924,150.18,150.09,1.88897606]
[1642037421064,2.914,150.18,150.1,28.47130918]
[1642037421264,2.914,150.18,150.1,28.72130918]
[1642037421465,0.25,150.18,150.11,0.26]
[1642037421662,2.664,150.17,150.11,0.26]
[1642037421863,2.664,150.17,150.1,28.72130918]
[1642037422263,2.664,150.19,150.1,28.72130918]
[1642037423464,2.664,150.19,150.11,0.26]
[1642037423665,97.0181,150.2,150.11,0.26]
[1642037427069,97.2681,150.2,150.11,0.26]
[1642037427269,97.0181,150.2,150.11,0.26]
[1642037428073,97.0181,150.2,150.11,6.26]
[1642037428273,97.0181,150.2,150.11,6.51]
[1642037429071,97.2681,150.2,150.11,6.51]
[1642037429273,26.02390201,150.19,150.11,6.26]
[1642037429597,2.922,150.19,150.11,6.51]
[1642037429771,3.172,150.19,150.11,6.51]
[1642037429970,2.912,150.19,150.11,0.25]
[1642037430171,2.662,150.19,150.11,0.25]
[1642037430573,0.25,150.19,150.1,28.72130918]
[1642037431573,0.25,150.19,150.11,0.26]
[1642037431770,97.2681,150.2,150.11,0.26]
[1642037432670,97.0181,150.2,150.11,0.26]
[1642037433773,2.664,150.21,150.11,0.26]
[1642037433971,50.3674,150.23,150.11,6.26]
[1642037434271,50.3674,150.23,150.11,6.51]
[1642037435072,50.6174,150.23,150.11,6.51]
[1642037435278,50.3674,150.23,150.11,8.39897606]
[1642037435476,47.7054,150.23,150.11,8.39897606]
[1642037436677,23.29429379,150.21,150.11,8.39897606]
[1642037437101,23.54429379,150.21,150.11,8.39897606]
[1642037437503,0.25,150.21,150.11,6.51]
[1642037437702,2.912,150.22,150.11,6.51]
[1642037437905,2.662,150.22,150.11,72.85]
[1642037439505,2.662,150.22,150.11,8.13897606]
[1642037440607,0.30198566,150.45,150.12,67.0]
[1642037440806,1.80477668,150.4,150.13,22.6852]
[1642037441008,15.5,150.39,150.14,23.8691]
[1642037441206,18.161,150.39,150.14,23.6091]
[1642037441407,0.31777879,150.32,150.13,28.6852]
[1642037441611,24.67019303,150.3,150.12,144.0162]
[1642037441807,12.162,150.29,150.12,144.0162]
[1642037442005,20.22677668,150.29,150.12,144.0162]
[1642037442206,66.34,150.28,150.12,144.0162]
[1642037442406,12.422,150.27,150.12,144.0162]
[1642037442607,66.34,150.26,150.12,144.2662]
[1642037442808,12.162,150.25,150.13,0.26]
[1642037443006,18.422,150.25,150.13,0.26]
[1642037443210,20.47677668,150.25,150.13,0.26]
[1642037443810,20.47677668,150.25,150.13,6.26]
[1642037444007,20.47677668,150.25,150.13,0.26]
[1642037444210,86.81677668,150.25,150.13,0.26]
[1642037444509,20.47677668,150.25,150.13,0.26]
[1642037445709,22.80954143,150.24,150.12,144.2662]
[1642037445911,12.422,150.23,150.12,144.2662]
[1642037446111,20.22677668,150.23,150.12,67.25]
[1642037446312,66.34,150.22,150.12,67.25]
[1642037446512,6.26,150.21,150.12,67.25]
[1642037446713,6.51,150.21,150.12,67.25]
[1642037447112,8.31477668,150.21,150.12,0.25]
[1642037447311,9.5,150.2,150.1,28.72130918]
[1642037447511,0.26,150.19,150.1,28.72130918]
[1642037447717,6.26,150.19,150.1,28.72130918]
[1642037447912,0.26,150.19,150.1,28.72130918]
[1642037448514,0.26,150.19,150.11,0.26]
[1642037449715,6.26,150.19,150.11,0.26]
[1642037449917,6.51,150.19,150.11,0.26]
[1642037450915,0.51,150.19,150.11,0.26]
[1642037451118,0.26,150.19,150.11,0.26]
[1642037451518,0.26,150.19,150.11,6.26]
[1642037451715,0.26,150.19,150.11,6.51]
[1642037452218,9.75,150.2,150.11,6.51]
[1642037452417,9.75,150.2,150.11,9.172]
[1642037454320,0.25,150.2,150.11,9.172]
[1642037454524,0.25,150.2,150.11,6.51]
[1642037454722,25.2043,150.21,150.11,6.51]
[1642037454927,25.2043,150.21,150.11,30.4959]
[1642037457325,24.9543,150.21,150.11,30.4959]
[1642037458128,12.164,150.23,150.11,30.4959]
[1642037458326,6.0,150.22,150.11,30.4959]
[1642037458528,6.0,150.22,150.11,33.1579]
[1642037458726,6.25,150.22,150.11,33.1579]
[1642037461131,6.25,150.22,150.11,27.1579]
[1642037461337,29.5827,150.22,150.11,27.1579]
[1642037462148,29.5827,150.22,150.12,6.0]
[1642037462533,29.5827,150.22,150.13,0.26]
[1642037463662,0.26,150.21,150.13,0.26]
[1642037463862,29.5827,150.22,150.12,0.26]
[1642037464162,0.26,150.21,150.12,6.26]
[1642037464362,2.922,150.21,150.11,0.26]
[1642037464565,0.26,150.21,150.13,0.26]
[1642037464865,0.51,150.21,150.09,26.9439]
[1642037465062,13.96677668,150.2,150.1,6.0]
[1642037465262,14.21677668,150.2,150.09,24.2819]
[1642037465461,6.26,150.19,150.07,2.662]
[1642037465661,6.26,150.19,150.06,84.32725842]
[1642037465662,69.004,150.18,150.06,84.32725842]
[1642037465863,95.28711781,150.18,150.06,110.11770476]
[1642037466061,6.26,150.17,150.06,110.11770476]
[1642037466262,6.51,150.17,150.06,110.36770476]
[1642037466463,31.1766,150.17,150.06,110.36770476]
[1642037466663,30.9166,150.17,150.07,0.26]
[1642037467061,24.9166,150.17,150.07,29.586]
[1642037467261,24.9166,150.17,150.07,29.836]
[1642037467762,24.9166,150.17,150.07,23.836]
[1642037469668,0.25,150.17,150.07,33.336]
[1642037469868,79.0065,150.19,150.08,6.0]
[1642037470073,76.3425,150.19,150.08,8.664]
[1642037470265,76.3425,150.19,150.09,0.26]
[1642037470566,76.3425,150.19,150.1,2.664]
[1642037470764,76.3425,150.19,150.1,2.914]
[1642037470965,76.3425,150.19,150.12,23.25231754]
[1642037471166,9.5,150.22,150.12,23.50231754]
[1642037471371,0.26,150.21,150.13,0.26]
[1642037473973,0.26,150.21,150.13,6.26]
[1642037474172,0.26,150.21,150.13,6.51]
[1642037474472,0.25,150.22,150.13,6.51]
[1642037474672,54.79437525,150.23,150.13,6.51]
[1642037474673,55.04437525,150.23,150.13,6.51]
[1642037474871,6.0,150.22,150.13,6.51]
[1642037475279,6.25,150.22,150.13,6.51]
[1642037476977,6.25,150.22,150.13,0.51]
[1642037477176,6.25,150.22,150.13,0.26]
[1642037477484,0.26,150.21,150.13,0.26]
[1642037477880,0.26,150.21,150.13,6.26]
[1642037478276,0.26,150.21,150.13,6.51]
[1642037478478,0.26,150.21,150.13,6.26]
[1642037478679,0.26,150.21,150.09,2.662]
[1642037478877,2.662,150.2,150.07,25.2416]
[1642037479076,6.0,150.19,150.07,31.2416]
[1642037479278,6.51,150.19,150.07,31.4916]
[1642037479476,0.26,150.18,150.07,57.10448464]
[1642037479678,24.3219903,150.17,150.07,57.10448464]
[1642037480078,6.0,150.16,150.07,57.10448464]
[1642037480380,6.25,150.16,150.07,57.10448464]
[1642037480982,6.25,150.16,150.08,0.26]
[1642037481180,2.664,150.21,150.09,2.664]
[1642037481482,22.589,150.21,150.1,24.0027]
[1642037481680,6.26,150.2,150.1,30.2527]
[1642037481879,8.924,150.2,150.1,30.2527]
[1642037482079,30.11900053,150.19,150.1,24.2527]
[1642037482682,30.36900053,150.19,150.1,24.2527]
[1642037483580,30.36900053,150.19,150.11,0.26]
[1642037484882,30.11900053,150.19,150.11,0.26]
[1642037486284,30.36900053,150.19,150.11,0.26]
[1642037489916,30.36900053,150.19,150.11,6.26]
[1642037490119,30.36900053,150.19,150.11,6.51]
[1642037491321,30.11900053,150.19,150.11,6.51]
[1642037491519,0.26,150.2,150.11,6.51]
[1642037491919,6.26,150.2,150.11,6.51]
[1642037492522,29.51583651,150.2,150.11,6.51]
[1642037493221,29.76583651,150.2,150.11,6.51]
[1642037493629,29.76583651,150.2,150.11,0.51]
[1642037493822,29.76583651,150.2,150.11,0.26]
[1642037494526,29.76583651,150.2,150.11,6.26]
[1642037494723,29.76583651,150.2,150.11,0.51]
[1642037494924,29.76583651,150.2,150.11,6.51]
[1642037495324,96.10583651,150.2,150.11,6.51]
[1642037495625,29.76583651,150.2,150.11,6.51]
[1642037495826,29.25583651,150.2,150.11,6.51]
[1642037497226,29.50583651,150.2,150.11,6.51]
[1642037501628,29.50583651,150.2,150.11,0.51]
[1642037502028,29.50583651,150.2,150.11,6.0]
[1642037502230,6.26,150.19,150.11,6.0]
[1642037502430,6.26,150.19,150.1,24.2527]
[1642037502631,6.51,150.19,150.1,24.0027]
[1642037502831,17.81477668,150.19,150.1,24.0027]
[1642037503031,16.01,150.19,150.08,2.664]
[1642037503231,2.664,150.18,150.08,2.664]
[1642037503430,0.26,150.17,150.08,2.664]
[1642037503635,2.664,150.16,150.08,2.664]
[1642037504032,6.26,150.15,150.08,2.664]
[1642037504231,24.55690243,150.14,150.08,2.664]
[1642037504631,6.0,150.13,150.09,0.26]
[1642037505032,6.25,150.13,150.09,0.26]
[1642037505637,6.25,150.13,150.08,2.664]
[1642037505834,0.26,150.12,150.03,93.2]
[1642037506137,0.26,150.12,150.03,116.6816]
[1642037506936,0.26,150.12,150.04,0.26]
[1642037509335,0.26,150.12,150.03,93.2]
[1642037509536,9.5,150.11,150.03,93.2]
[1642037509735,9.75,150.11,150.03,93.2]
[1642037509935,6.26,150.1,150.03,93.2]
[1642037510135,6.51,150.1,150.03,93.2]
[1642037510336,72.85,150.1,150.03,93.2]
[1642037512337,2.665,150.09,150.03,93.2]
[1642037512542,6.0,150.08,150.03,93.2]
[1642037512740,24.87084958,150.07,150.03,93.2]
[1642037512938,0.26,150.06,150.03,93.2]
[1642037513138,6.26,150.06,150.03,93.2]
[1642037513538,6.51,150.06,150.03,93.2]
[1642037515547,6.51,150.06,149.99,93.2]
[1642037515748,12.166,150.05,149.92,95.866]
[1642037515947,0.26,150.04,149.92,95.866]
[1642037516145,2.666,150.03,149.92,95.866]
[1642037516349,27.15868511,150.02,149.92,124.85477259]
[1642037516546,33.41868511,150.02,149.92,124.85477259]
[1642037516747,33.66868511,150.02,149.92,124.85477259]
[1642037516947,6.51,150.02,149.92,124.85477259]
[1642037517949,31.95602784,150.02,149.92,124.85477259]
[1642037518854,41.45602784,150.02,149.92,95.866]
[1642037519254,2.666,150.01,149.92,95.866]
[1642037519457,9.76,150.0,149.92,95.866]
[1642037519659,16.01,150.0,149.92,95.866]
[1642037519854,27.6021551,149.99,149.92,95.866]
[1642037520053,66.34,149.97,149.92,95.866]
[1642037520254,66.59,149.97,149.92,93.2]
[1642037520455,6.0,149.96,149.92,93.2]
[1642037520653,30.83550347,149.96,149.92,93.2]
[1642037521056,6.25,149.96,149.92,93.2]
[1642037521255,0.25,149.96,149.92,93.2]
[1642037521466,3.0,149.97,149.92,93.2]
[1642037521654,23.2893,150.01,149.93,2.666]
[1642037521855,12.166,150.05,149.92,95.02908411]
[1642037522058,23.3054,150.04,149.94,1.83908411]
[1642037522256,26.27500283,150.04,149.94,1.57908411]
[1642037522455,26.27500283,150.04,149.95,0.26]
[1642037522654,28.94100283,150.04,149.95,0.26]
[1642037522855,26.27500283,150.04,149.95,0.26]
[1642037523479,6.0,150.03,149.95,0.26]
[1642037523678,6.0,150.03,149.96,2.666]
[1642037523883,6.0,150.03,149.95,2.926]
[1642037524082,0.26,150.02,149.95,0.26]
[1642037524979,0.26,150.02,149.92,93.2]
[1642037525180,29.43918011,150.01,149.92,93.2]
[1642037525381,9.76,150.0,149.92,93.2]
[1642037525579,69.006,149.99,149.92,93.2]
[1642037525778,69.256,149.99,149.92,93.2]
[1642037525983,66.34,149.97,149.92,93.2]
[1642037526180,92.86500283,149.97,149.92,93.2]
[1642037526380,6.26,149.96,149.92,93.2]
[1642037526780,6.51,149.96,149.92,93.2]
[1642037527080,0.51,149.96,149.92,93.2]
[1642037527480,0.25,149.96,149.92,93.2]
[1642037527680,0.26,149.97,149.92,93.2]
[1642037527880,66.6,149.97,149.92,93.2]
[1642037528080,6.0,149.96,149.92,93.2]
[1642037528280,6.25,149.96,149.92,93.2]
[1642037528580,22.74247001,149.95,149.92,93.2]
[1642037528780,22.99247001,149.95,149.92,93.2]
[1642037530683,6.26,149.94,149.86,93.2]
[1642037531085,6.51,149.94,149.86,93.2]
[1642037531588,6.25,149.94,149.86,124.19282452]
[1642037531889,10.1576,150.07,149.87,2.668]
[1642037531890,9.5,149.99,149.87,2.668]
[1642037532086,9.5,149.99,149.87,8.668]
[1642037532296,9.5,149.99,149.87,8.918]
[1642037532689,9.5,149.99,149.88,25.0035]